[Event "Fagernes Chess GM-Swiss 2024"]
[Site "Fagernes"]
[Date "2024.03.24"]
[Round "1.1"]
[White "Shehzad, Shazil"]
[Black "Puranik, Abhimanyu"]
[Result "1/2-1/2"]
[ECO "A45"]
[WhiteElo "2301"]
[BlackElo "2618"]
[Annotator "TA"]
[PlyCount "65"]
[EventDate "2024.03.25"]
[EventType "swiss"]
[EventCountry "NOR"]
[SourceTitle "playchess.com"]
[Source "ChessBase"]
[SourceQuality "1"]
[TimeControl "40/6000+30:2400+30"]

{[%evp 9,65,6,11,8,22,10,28,11,28,32,27,24,50,21,18,14,16,20,25,26,17,0,9,0,10,-22,0,-15,0,0,26,0,13,0,16,7,7,20,16,10,50,59,56,43,117,63,82,88,77,83,85,90,82,0,0,0,75,0]} 1. d4 {[%emt 0:00:05]} Nf6 {[%emt 0:00:20]} 2. Bf4 {[%emt 0:00:17]} b6 {[%emt 0:02:34]} 3. e3 {[%emt 0:00:12]} Bb7 {[%emt 0:00:44]} 4. c4 {[%emt 0:00:15]} e6 {[%emt 0:04:04]} 5. Nc3 {[%emt 0:00:56]} Bb4 {[%emt 0:05:25]} 6. Nge2 {[%emt 0:00:06]} Nh5 {[%emt 0:04:22]} 7. Qc2 {[%emt 0:22:13]} O-O {[%emt 0:03:23]} 8. Bg3 {[%emt 0:06:14] White has an edge.} h6 {[%emt 0:24:07]} 9. a3 {[%emt 0:03:36]} Be7 {[%emt 0:02:56]} 10. d5 {[%emt 0:05:12]} Nxg3 {[%emt 0:07:47]} 11. Nxg3 {[%emt 0:01:56]} exd5 {[%emt 0:03:17]} 12. Nxd5 {[%emt 0:04:37]} Re8 $1 {[%emt 0:01:36]} 13. Be2 {[%emt 0:04:18]} Bf8 {[%emt 0:06:20]} 14. h4 {[%emt 0:01:35]} d6 {[%emt 0:01:36]} 15. h5 {[%emt 0:01:39]} Nd7 {[%emt 0:00:11][%cal Ob6b5,Bb8d7,Bd7c5,Bc5e6][%mdl 32] Black is weak on the light squares} 16. O-O {[%emt 0:01:25]} a5 {[%emt 0:01:39]} 17. b3 {[%emt 0:04:09]} b5 {[%emt 0:05:41]} 18. Nf5 {[%emt 0:20:08]} bxc4 {[%emt 0:02:49]} 19. bxc4 {[%emt 0:03:14]} Nc5 {[%emt 0:01:35]} 20. Rab1 {[%emt 0:05:14]} c6 {[%emt 0:03:28]} 21. Nb6 {[%emt 0:02:29] A dynamic duo of knights.} Ra7 {[%emt 0:02:29]} 22. Bf3 {[%emt 0:05:11]} Ne6 {[%emt 0:09:13]} 23. g3 {[%emt 0:03:46]} Ra6 {[%emt 0:04:14]} 24. Qb2 {[%emt 0:03:19]} Qg5 {[%emt 0:03:19]} 25. Nd4 {[%emt 0:03:06]} Nxd4 {[%emt 0:00:25]} 26. Qxd4 {[%emt 0:00:39][%cal Ob6d5]} (26. exd4 {simplifies} Re7 27. Rfe1 Ra7 28. Rxe7 Qxe7 29. Qb3) 26... Rd8 {[%emt 0:03:19]} (26... Qd8 $14 27. Kg2 Qc7 (27... c5 28. Qb2 $16)) 27. Rfd1 {[%emt 0:02:11] White is much more active.} ({White should play} 27. Nd5 $16 Rd7 28. Nf4) 27... c5 {[%emt 0:03:27]} 28. Qg4 {[%emt 0:00:13]} (28. Bxb7 $2 {perishes.} cxd4 29. Bxa6 dxe3 $19) 28... Qxg4 {[%emt 0:00:08]} 29. Bxg4 {[%emt 0:00:01]} Be4 {[%emt 0:00:07]} 30. Rb5 {[%emt 0:00:48]} Bc6 {[%emt 0:00:12]} 31. Rbb1 {[%emt 0:04:07]} Be4 $1 {[%emt 0:00:11]} 32. Rb5 {[%emt 0:00:24]} Bc6 {[%emt 0:00:07] [#]} 33. Rbb1 {[%emt 0:00:38] Weighted Error Value: White=0.12 (very precise) /Black=0.11 (very precise) .  Mistake:       	White=2     	Black=1      Inaccurate:     	White=3     	Black=3      OK:         	White=8     	Black=7      Best:        	White=1     	Black=1      Strong:       	---       	Black=2} (33. Nd5 $1 $16) 1/2-1/2

[Event "Fagernes Chess GM-Swiss 2024"]
[Site "Fagernes"]
[Date "2024.03.24"]
[Round "1.2"]
[White "Jumabayev, Rinat"]
[Black "Gandrud, Vegar Koi"]
[Result "1-0"]
[ECO "E60"]
[WhiteElo "2598"]
[BlackElo "2293"]
[Annotator "TA"]
[PlyCount "67"]
[EventDate "2024.03.25"]
[EventType "swiss"]
[EventCountry "NOR"]
[SourceTitle "playchess.com"]
[Source "ChessBase"]
[SourceQuality "1"]
[TimeControl "40/6000+30:2400+30"]

{[%evp 13,67,27,15,0,33,16,25,29,18,37,29,28,52,25,66,62,141,139,134,158,135,143,127,112,178,171,164,151,200,153,489,498,558,552,590,590,585,570,987,983,959,898,987,984,1166,1138,1210,1175,1254,1248,2007,1943,1997,1220,1165,1127]} 1. d4 {[%emt 0:00:02]} Nf6 {[%emt 0:00:07]} 2. Nf3 {[%emt 0:00:25]} g6 {[%emt 0:00:09]} 3. c4 {[%emt 0:00:42]} Bg7 {[%emt 0:00:08]} 4. e3 {[%emt 0:00:18]} O-O {[%emt 0:00:20]} 5. Be2 {[%emt 0:00:03]} c5 {[%emt 0:02:06]} 6. d5 {[%emt 0:00:27]} d6 {[%emt 0:00:40]} 7. Nc3 {[%emt 0:00:06]} e6 {[%emt 0:00:17]} 8. Nd2 {[%emt 0:00:10]} exd5 {[%emt 0:00:58]} 9. cxd5 {[%emt 0:00:14]} Re8 {[%emt 0:04:32]} 10. e4 $1 {[%emt 0:06:55] White has an edge.} a6 {[%emt 0:04:05]} 11. a4 {[%emt 0:00:16][%cal Ba2a4,Ba4a5][%mdl 32]} Nbd7 {[%emt 0:04:07][%cal Bb8d7,Bd7e5,Be5g6][%mdl 32]} 12. O-O {[%emt 0:00:26]} h6 {[%emt 0:16:27]} 13. Qc2 {[%emt 0:14:19]} Nh7 {[%emt 0:14:57]} 14. a5 {[%emt 0:25:54]} g5 {[%emt 0:18:42]} (14... Bd4 $14) 15. Nc4 $16 {[%emt 0:01:49]} Ne5 {[%emt 0:01:15]} 16. Nb6 {[%emt 0:00:46]} Rb8 {[%emt 0:00:11]} 17. Nd1 {[%emt 0:01:06][%cal Bc3d1,Bd1e3,Be3f5][%mdl 32] White is more active.} Ng6 {[%emt 0:03:36]} 18. Ne3 {[%emt 0:02:51]} Nf6 {[%emt 0:05:00]} (18... Bd4 $16 19. Kh1 Nf6) 19. Ra4 $18 {[%emt 0:01:52]} Bd7 {[%emt 0:05:00]} 20. Nxd7 {[%emt 0:00:37]} Qxd7 {[%emt 0:00:03]} (20... Nxd7 $16 {was called for.} 21. b3 Qf6) 21. Nf5 {[%emt 0:00:58]} Nxd5 $2 {[%emt 0:01:09] [#] This move loses the game for Black.} (21... Bf8 $16 22. Ne3 Nf4) 22. Bg4 $1 {[%emt 0:01:57] Threatens to win with Nxh6+. White is clearly winning.} ({And not} 22. exd5 Rxe2 23. Qxe2 Qxa4 $15) 22... Nf6 {[%emt 0:05:02] [#]} 23. Nxh6+ {[%emt 0:00:29][%mdl 512]} Bxh6 {[%emt 0:00:04]} 24. Bxd7 {[%emt 0:00:05]} Nxd7 {[%emt 0:00:03] [#]} 25. h4 $1 {[%emt 0:02:43]} Nf4 {[%emt 0:05:30]} (25... Nxh4 26. e5) 26. hxg5 {[%emt 0:00:42]} Bxg5 {[%emt 0:00:02]} 27. Ra3 {[%emt 0:01:18][%cal Ba4a3,Ba3g3,Bg3g4,Bg4g7][%mdl 32]} Kf8 {[%emt 0:01:58]} 28. Rg3 {[%emt 0:01:58]} f6 {[%emt 0:00:10]} 29. Rg4 {[%emt 0:03:55]} Ne6 {[%emt 0:00:44]} 30. f4 {[%emt 0:00:45][%cal Bf2f4,Bf4f5][%mdl 32]} Bh6 {[%emt 0:01:07] [#]} 31. e5 $1 {[%emt 0:01:02] Intending Qh7 and mate.} Bg7 {[%emt 0:00:31]} (31... Ke7 32. Qh7+) 32. Qh7 {[%emt 0:01:05] f5 would kill now.} Re7 {[%emt 0:02:24]} 33. f5 {[%emt 0:02:28]} Nxe5 {[%emt 0:02:04] [#]} 34. Rxg7 $1 {[%emt 0:00:37][%mdl 512] Weighted Error Value: White=0.06 (flawless) /Black=0.52.  Loses game:     	---       	Black=1      Mistake:       	---       	Black=3      Inaccurate:     	White=1     	Black=3      OK:         	White=9     	Black=4      Best:        	White=1     	---        Strong:       	White=2     	---        Brilliant:      	White=1     	---} 1-0

[Event "Fagernes Chess GM-Swiss 2024"]
[Site "Fagernes"]
[Date "2024.03.24"]
[Round "1.3"]
[White "Melaa, Sondre"]
[Black "Sasikiran, Krishnan"]
[Result "0-1"]
[ECO "B90"]
[WhiteElo "2285"]
[BlackElo "2578"]
[Annotator "TA"]
[PlyCount "66"]
[EventDate "2024.03.25"]
[EventType "swiss"]
[EventCountry "NOR"]
[SourceTitle "playchess.com"]
[Source "ChessBase"]
[SourceQuality "1"]
[TimeControl "40/6000+30:2400+30"]

{[%evp 11,66,14,18,0,0,-20,8,0,0,0,0,0,7,0,24,-14,0,-52,-54,-56,-41,-79,-8,-10,-52,-28,0,-83,-83,-89,-96,-130,-117,-179,-183,-269,-268,-264,-145,-210,-219,-225,-196,-359,-344,-745,-781,-881,-843,-863,-829,-2250,-1615,-29992,-29993,-29993,-29994]} 1. e4 {[%emt 0:04:19]} c5 {[%emt 0:00:29]} 2. Nf3 {[%emt 0:00:12]} d6 {[%emt 0:00:13]} 3. d4 {[%emt 0:00:16]} cxd4 {[%emt 0:00:14]} 4. Nxd4 {[%emt 0:00:08]} Nf6 {[%emt 0:00:07]} 5. Nc3 {[%emt 0:00:07]} a6 {[%emt 0:00:12]} 6. h3 {[%emt 0:00:22]} e5 {[%emt 0:05:00]} 7. Nf3 {[%emt 0:01:31]} Be7 {[%emt 0:09:49]} 8. g4 {[%emt 0:02:23][%cal Bg2g4,Bg4g5][%mdl 32]} Be6 {[%emt 0:02:11]} 9. g5 {[%emt 0:00:58] Die Stellung ist ausgeglichen.} Nfd7 {[%emt 0:00:43]} 10. Be3 {[%emt 0:01:19]} Nb6 {[%emt 0:04:19]} 11. Qd2 {[%emt 0:07:16]} N8d7 {[%emt 0:04:54]} 12. O-O-O {[%emt 0:08:24]} Rc8 {[%emt 0:03:49]} 13. h4 {[%emt 0:10:58]} Bg4 {[%emt 0:17:02]} 14. Be2 {[%emt 0:04:45]} (14. Bxb6 $1 $11 Nxb6 15. Qd3) 14... Nc4 $15 {[%emt 0:02:54]} 15. Qd3 {[%emt 0:02:23]} Qa5 {[%emt 0:09:23] Und jetzt ...Qb4 wäre schön.} 16. Nd2 {[%emt 0:04:30]} Nxe3 {[%emt 0:09:33]} (16... Nxb2 $1 $17 17. Kxb2 Qb4+ (17... Rxc3 18. Qxc3 Qxc3+ 19. Kxc3 $14) 18. Nb3 Rxc3 19. Qxc3 Qxc3+ 20. Kxc3 Bxe2) 17. Qxe3 $11 {[%emt 0:02:11] [#]} Rxc3 $1 {[%emt 0:02:25]} 18. bxc3 {[%emt 0:01:20]} Be6 {[%emt 0:04:46] ( -> ...Qa3+)} 19. Nb3 {[%emt 0:21:03]} (19. Bc4 $11 {bleibt in der Remisbreite.}) 19... Qxa2 $17 {[%emt 0:07:09][%cal Oe8g8]} 20. c4 {[%emt 0:00:14]} O-O {[%emt 0:02:15][%cal Od6d5][%mdl 1024] Schwarz hat starke Kompensation.} 21. Qc3 {[%emt 0:05:40]} Qa4 {[%emt 0:02:18]} 22. f3 {[%emt 0:03:29]} (22. f4 $17 {ist eine bessere Verteidigung.} exf4 23. Rhf1) 22... Rc8 $1 $19 {[%emt 0:02:34][%cal Re6c4]} 23. Kb2 {[%emt 0:05:47]} (23. Qa5 {war einen Versuch wert.} Qc6 24. Qb4) 23... Nb6 {[%emt 0:02:35][%cal Re6c4]} (23... Bxc4 24. Bxc4 Nb6 (24... Qxc4 25. Qxc4 Rxc4 26. Rd3 $11) (24... Rxc4 $2 25. Qa5 $19) 25. Ra1 (25. Bxf7+ $2 Kxf7 26. Qd3 Nc4+ 27. Kc3 Ke8 $19) 25... Rxc4 (25... Nxc4+ $2 26. Kc1 $19) (25... Qxc4 26. Qxc4 Nxc4+ 27. Kc1 $19) 26. Qd2 $19) 24. Ra1 {[%emt 0:01:43]} Qc6 {[%emt 0:03:29]} ({Vorzuziehen ist} 24... Bxc4 $19 {Und ...Qb5 würde nun gewinnen.} 25. Bxc4 Rxc4 (25... Nxc4+ $2 26. Kc1 $19) (25... Qxc4 26. Qxc4 Nxc4+ 27. Kb1 $19)) 25. Qb4 {[%emt 0:00:09] [#]} (25. Kc1 $17) 25... Qc7 $1 {[%emt 0:03:01][%cal Rb6c4]} (25... Bxc4 26. Na5 d5 27. Nxc6 $11) (25... Nxc4+ 26. Bxc4 Qxc4 (26... Bxc4 27. Na5 $15) 27. Qxc4 Rxc4 (27... Bxc4 28. c3 $17) 28. c3 $17) 26. Qc3 {[%emt 0:03:47]} g6 {[%emt 0:02:33][%cal Oc7d7]} 27. Na5 $2 {[%emt 0:01:59] [#]} (27. Rhd1 {war nötig.}) 27... d5 $1 {[%emt 0:01:22][%cal Rd5c4][%mdl 512]} 28. exd5 $2 {[%emt 0:01:47] [#]} (28. Rhd1) (28. Kc1 dxc4) 28... Nxd5 $1 {[%emt 0:00:18][%mdl 512]} 29. Qd3 {[%emt 0:02:04]} (29. Qb3 Nf4) 29... Nf4 {[%emt 0:02:10]} 30. Qd2 {[%emt 0:01:21] [#]} b5 $1 {[%emt 0:00:49][%mdl 512]} 31. cxb5 {[%emt 0:01:56] [#]} (31. Rhb1 Nxe2) 31... Bb4 $1 {[%emt 0:00:31][%mdl 512]} 32. Qxb4 {[%emt 0:00:24]} (32. Qd1 Bc3+) 32... Qxc2+ {[%emt 0:00:05]} (32... Nxe2 $2 {zu gefräßig.} 33. Nc6 (33. bxa6 {ist ein Selbstmatt.} Qxc2+ 34. Ka3 Rc3+) 33... Nd4 34. Rxa6 $16) 33. Ka3 {[%emt 0:00:07]} Rc3+ {[%emt 0:00:14] Gewichteter Fehlerwert: Weiß=1.02/Schwarz=0.14 (sehr präzise) .  Fehler:       	Weiß=7     	Schwarz=2     Ungenau:       	Weiß=3     	Schwarz=2     OK:         	Weiß=3     	Schwarz=9     Bester:       	---       	Schwarz=2     Stark:        	---       	Schwarz=1     Brilliant:      	---       	Schwarz=2} 0-1

[Event "Fagernes Chess GM-Swiss 2024"]
[Site "Fagernes"]
[Date "2024.03.24"]
[Round "1.4"]
[White "Ganguly, Surya Shekhar"]
[Black "Daakshin Arun"]
[Result "1-0"]
[ECO "E98"]
[WhiteElo "2574"]
[BlackElo "2283"]
[Annotator "TA"]
[PlyCount "67"]
[EventDate "2024.03.25"]
[EventType "swiss"]
[EventCountry "NOR"]
[SourceTitle "playchess.com"]
[Source "ChessBase"]
[SourceQuality "1"]
[TimeControl "40/6000+30:2400+30"]

{[%evp 23,67,48,68,59,71,31,40,46,41,29,69,50,86,83,87,69,81,66,112,101,84,90,192,197,204,205,411,420,407,449,470,471,512,149,1028,1000,1110,1075,1583,1537,1592,1592,2708,3706,1885,1762]} 1. Nf3 {[%emt 0:00:20]} Nf6 {[%emt 0:00:13]} 2. c4 {[%emt 0:00:06]} g6 {[%emt 0:00:06]} 3. Nc3 {[%emt 0:01:41]} Bg7 {[%emt 0:00:16]} 4. e4 {[%emt 0:00:10]} d6 {[%emt 0:00:09]} 5. d4 {[%emt 0:00:06][%cal Bd2d4,Bd4d5][%mdl 32]} O-O {[%emt 0:00:07]} 6. Be2 {[%emt 0:00:12]} e5 {[%emt 0:00:20]} 7. O-O {[%emt 0:00:07]} Nc6 {[%emt 0:00:06]} 8. d5 {[%emt 0:00:26]} Ne7 9. Ne1 {[%emt 0:00:09][%cal Bf3e1,Be1d3,Bd3f2,Bf2g4][%mdl 32]} Nd7 {[%emt 0:01:00]} 10. Nd3 {[%emt 0:00:08]} f5 {[%emt 0:00:31]} 11. f3 {[%emt 0:00:06]} f4 {[%emt 0:03:16]} 12. b4 {[%emt 0:00:27]} g5 {[%emt 0:03:17]} 13. a4 {[%emt 0:03:01] White is more active.} h5 {[%emt 0:03:33]} 14. Kh1 {[%emt 0:01:22]} Nf6 {[%emt 0:06:27]} 15. Nf2 {[%emt 0:00:17] White is slightly better.} Ng6 {[%emt 0:12:07]} 16. Rg1 {[%emt 0:01:31]} Kf7 {[%emt 0:19:43]} 17. a5 {[%emt 0:09:59]} g4 {[%emt 0:11:15]} 18. fxg4 {[%emt 0:02:17]} hxg4 {[%emt 0:01:37]} 19. Nxg4 {[%emt 0:02:57]} (19. Bxg4 $2 {is the wrong capture.} Nxg4 20. Nxg4 Qh4 $19) 19... Rh8 {[%emt 0:11:49]} 20. g3 {[%emt 0:09:35]} fxg3 {[%emt 0:08:15]} (20... Nh5 $14 {deserves consideration.} 21. Nh6+ Rxh6 22. Bxh5 Qh8) 21. Rxg3 $16 {[%emt 0:00:34] Nxf6 is the strong threat.} Nf4 {[%emt 0:01:23] Threatens to win with ...Nxg4.} 22. Qg1 $36 {[%emt 0:14:56][%cal Og4e5][%mdl 2048] And now Nxe5+! would win. White is in control.} N6h5 {[%emt 0:06:59] [#]} (22... Bxg4 $16 23. Bxg4 Nxg4 24. Rxg4 Qf6) 23. Bxf4 $1 $18 {[%emt 0:02:23]} Nxf4 {[%emt 0:01:24]} 24. Rf1 {[%emt 0:00:56]} Bd7 $2 {[%emt 0:04:12]} (24... Rh7 25. c5 Kg8) 25. c5 {[%emt 0:04:20]} Qh4 {[%emt 0:03:23]} 26. Bb5 {[%emt 0:01:24]} Bxg4 {[%emt 0:03:05]} 27. Rxg4 {[%emt 0:00:06]} Qf6 {[%emt 0:00:19]} 28. Bd7 $2 {[%emt 0:01:06]} (28. cxd6 $18 cxd6 29. Ne2) 28... Bh6 $2 {[%emt 0:00:52][%mdl 8192] [#] This move loses the game for Black.} (28... Rxh2+ $16 29. Qxh2 Rh8) 29. Be6+ $1 {[%emt 0:00:34][%mdl 512] White is clearly winning.} Ke7 {[%emt 0:00:32]} (29... Ke8 30. Nb5) 30. Nb5 {[%emt 0:00:10]} Bg5 {[%emt 0:01:16]} 31. Rxg5 {[%emt 0:01:25]} Rxh2+ {[%emt 0:00:10]} 32. Qxh2 {[%emt 0:00:03]} Rh8 {[%emt 0:00:35] [#] Prevents Qh7+} 33. Rh5 $3 {[%emt 0:00:19]} Rxh5 {[%emt 0:01:12]} 34. Qxh5 {[%emt 0:00:06] Weighted Error Value: White=0.39/Black=0.40.  Loses game:     	---       	Black=1      Missed win:     	White=1     	---        Mistake:       	---       	Black=3      Inaccurate:     	White=1     	Black=2      OK:         	White=8     	Black=4      Best:        	---       	Black=2      Strong:       	White=1     	---} 1-0

[Event "Fagernes Chess GM-Swiss 2024"]
[Site "Fagernes"]
[Date "2024.03.24"]
[Round "1.5"]
[White "Al-Tarboush, Ward"]
[Black "Amar, Elham"]
[Result "0-1"]
[ECO "B70"]
[WhiteElo "2277"]
[BlackElo "2567"]
[Annotator "TA"]
[PlyCount "100"]
[EventDate "2024.03.25"]
[EventType "swiss"]
[EventCountry "NOR"]
[SourceTitle "playchess.com"]
[Source "ChessBase"]
[SourceQuality "1"]
[TimeControl "40/6000+30:2400+30"]

{[%evp 20,100,13,23,26,8,18,17,15,25,23,0,0,0,0,0,0,-19,-18,-103,-87,-99,-97,-155,-104,-104,-112,-113,-113,-105,-112,-105,-106,-106,-111,-113,-105,-106,-106,-101,-100,-102,-35,-35,-35,-54,-30,-120,-123,-112,-56,-327,-207,-304,-271,-345,-341,-416,-373,-281,-355,-352,-338,-471,-466,-313,-308,-305,-283,-688,-695,-786,-660,-29978,-29978,-29985,-29986,-29986,-29987,-29988,-29989,-29992,-29993]} 1. e4 {[%emt 0:00:05]} c5 {[%emt 0:00:24]} 2. Nf3 {[%emt 0:00:04]} d6 {[%emt 0:00:33]} 3. d4 {[%emt 0:00:03]} cxd4 {[%emt 0:00:19]} 4. Nxd4 {[%emt 0:00:01]} Nf6 {[%emt 0:00:26]} 5. Nc3 {[%emt 0:00:03]} g6 {[%emt 0:00:55]} 6. Be2 {[%emt 0:00:06]} Bg7 {[%emt 0:01:19]} 7. O-O {[%emt 0:00:06]} O-O {[%emt 0:00:42]} 8. Be3 {[%emt 0:00:04]} Nc6 {[%emt 0:01:30]} 9. h3 {[%emt 0:00:13]} Bd7 {[%emt 0:02:32][%cal Bc8d7,Bd7c6,Bc6d5][%mdl 32]} 10. Qd2 {[%emt 0:01:04]} Rc8 {[%emt 0:01:41]} 11. Rad1 {[%emt 0:00:07]} Nxd4 {[%emt 0:02:44]} 12. Bxd4 {[%emt 0:00:37][%cal Od2e3]} Bc6 {[%emt 0:01:07]} 13. Qe3 {[%emt 0:01:22][%cal Of2f4]} (13. Bxa7 b6 14. Qe3 Nd7 $17) 13... Qc7 {[%emt 0:02:43] The position is equal.} 14. f4 {[%emt 0:18:42]} ({Much weaker is} 14. Bxa7 Nd7 15. Bg4 (15. Bd4 $2 e5 $19) 15... e6 $17) 14... b6 {[%emt 0:01:00] [#] ...e5 would now be deadly.} 15. e5 {[%emt 0:15:43]} dxe5 {[%emt 0:01:07]} 16. fxe5 {[%emt 0:03:18]} (16. Bxe5 $5 Qb7 $8 17. Rf2 $11) 16... Nd5 {[%emt 0:00:04]} 17. Nxd5 {[%emt 0:04:08]} Bxd5 {[%emt 0:00:18]} 18. Bg4 {[%emt 0:07:50]} (18. Rd2 {simplifies} Qc6 19. Bd3 Bc4 20. Bxc4 Qxc4 21. b3) 18... Rcd8 {[%emt 0:29:39]} (18... e6 {simplifies} 19. Rd2 h5 20. Bf3 Rcd8) 19. e6 {[%emt 0:18:19]} (19. Qc3 $11 {keeps the balance.} Qb7 20. Rf2) 19... f5 $17 {[%emt 0:16:31]} ({Reject} 19... Bxa2 $6 20. Bxg7 Rxd1 21. Rxd1 $11) 20. Bxg7 {[%emt 0:22:27]} Kxg7 {[%emt 0:00:05]} 21. Rd3 {[%emt 0:15:40]} Qxc2 {[%emt 0:21:34]} (21... Bc4 $142 22. Rxd8 Rxd8) 22. Qe5+ {[%emt 0:00:13]} Rf6 {[%emt 0:00:21][%csl Gd5][%cal Rc2g2] [#] Chess con chili.} 23. Rxd5 {[%emt 0:00:28]} Rxd5 {[%emt 0:00:03]} 24. Qxd5 {[%emt 0:00:03]} fxg4 {[%emt 0:00:05]} 25. Rxf6 {[%emt 0:00:39]} Kxf6 {[%emt 0:00:04][%mdl 4096] Endgame. KQ-KQ} 26. Qd4+ {[%emt 0:00:36]} Kxe6 {[%emt 0:00:05] And now ...gxh3 would win.} 27. Qxg4+ {[%emt 0:00:03]} Kf7 {[%emt 0:01:06]} 28. Qf4+ {[%emt 0:00:16]} Qf5 {[%emt 0:00:07]} 29. Qc4+ {[%emt 0:00:20]} Kg7 {[%emt 0:00:15]} 30. b4 {[%emt 0:00:40] Against Qc5+} e5 {[%emt 0:04:43]} (30... h5 $17) 31. Qc7+ $15 {[%emt 0:00:37]} Kh6 {[%emt 0:00:01]} 32. Qe7 {[%emt 0:00:22] Inhibits Qf6.} Qf4 {[%emt 0:00:57]} 33. Qc7 {[%emt 0:01:36]} (33. Qxa7 $11 {remains equal.} Qxb4 34. Qc7) 33... Qxb4 $17 {[%emt 0:00:54] ...Qc5+ is the strong threat.} 34. Qxa7 {[%emt 0:00:27]} e4 {[%emt 0:01:08]} (34... Qc5+ $17 35. Kf1 Qc4+ 36. Kf2 Qf4+ 37. Ke2 Qb4) 35. Qf7 $2 {[%emt 0:00:42][%mdl 8192] This costs White the game.} (35. Qc7 $1 $15) 35... Qc5+ {[%emt 0:00:07]} 36. Kh1 {[%emt 0:00:33]} (36. Kh2 {is a better defense.} Qe5+ 37. g3) 36... e3 $19 {[%emt 0:03:45]} 37. Qf4+ {[%emt 0:00:06]} Kg7 {[%emt 0:00:01]} 38. Qe4 {[%emt 0:00:06]} Kf6 {[%emt 0:00:14] Inhibits Qe6+.} 39. Qf4+ {[%emt 0:00:14]} Ke6 {[%emt 0:00:07]} 40. Qe4+ {[%emt 0:00:43]} Kd6 {[%emt 0:00:51]} 41. Qf4+ {[%emt 0:41:17]} Kd5 {[%emt 0:43:09] Strongly threatening ...Qd4.} 42. Qf3+ {[%emt 0:00:00]} Kd4 {[%emt 0:00:00]} 43. Qd1+ {[%emt 0:00:00]} Ke5 {[%emt 0:00:00]} 44. Qd3 {[%emt 0:00:00] Prevents Qc4} (44. Qe2) 44... Qd4 {[%emt 0:00:00]} 45. Qb5+ {[%emt 0:00:00]} Kd6 {[%emt 0:00:00] ( -> ...Qa1+)} 46. Qe2 {[%emt 0:00:00]} Qd2 {[%emt 0:00:00] Black mates.} 47. Qb5 {[%emt 0:00:00]} e2 {[%emt 0:00:00]} ({Weaker is} 47... Qxa2 48. Qxb6+ Ke5 49. Qxe3+ Kf6 50. Qc3+ Kf7 51. h4 $11) 48. Qxb6+ {[%emt 0:00:00]} Ke7 {[%emt 0:00:00]} 49. Qc7+ {[%emt 0:00:00]} Kf6 {[%emt 0:00:00]} 50. Qc5 {[%emt 0:00:00]} e1=Q+ {[%emt 0:00:00] Weighted Error Value: White=0.56/Black=0.08 (flawless) .  Loses game:     	White=1     	---        Mistake:       	White=5     	Black=3      Inaccurate:     	White=1     	Black=1      OK:         	White=11    	Black=16     Best:        	White=5     	Black=7} 0-1